[Event "*** Titled Tuesday Blitz"]
[Site "Chess.com"]
[Date "2019.07.02"]
[Round "3"]
[White "JustaTrickstar"]
[Black "TaykaGM"]
[Result "1-0"]
[WhiteElo "2853"]
[BlackElo "2565"]
[TimeControl "180+2"]
[EndTime "13:40:23 PDT"]
[Termination "JustaTrickstar won on time"]

1. c4 {[%clk 0:03:01.9]} 1... e6 {[%clk 0:02:59.9]} 2. Nc3 {[%clk 0:03:02.2]}
2... d5 {[%clk 0:03:00.9]} 3. d4 {[%clk 0:03:03.1]} 3... a6 {[%clk 0:03:01.9]}
4. cxd5 {[%clk 0:03:03.4]} 4... exd5 {[%clk 0:03:03.8]} 5. Bf4 {[%clk
0:03:04.7]} 5... c6 {[%clk 0:03:04.1]} 6. e3 {[%clk 0:03:05.7]} 6... Bd6 {[%clk
0:03:05.6]} 7. Bd3 {[%clk 0:03:03.2]} 7... Nf6 {[%clk 0:03:01.9]} 8. Nge2 {[%clk
0:02:53]} 8... O-O {[%clk 0:03:00.3]} 9. O-O {[%clk 0:02:51.7]} 9... Bg4 {[%clk
0:02:57.4]} 10. f3 {[%clk 0:02:51.8]} 10... Bh5 {[%clk 0:02:58.3]} 11. Qd2
{[%clk 0:02:46.7]} 11... Bg6 {[%clk 0:02:53.9]} 12. e4 {[%clk 0:02:34.9]} 12...
Bxf4 {[%clk 0:02:34.9]} 13. Qxf4 {[%clk 0:02:34.2]} 13... Nbd7 {[%clk
0:02:23.9]} 14. Rad1 {[%clk 0:02:31.2]} 14... Qb6 {[%clk 0:02:24.6]} 15. Kh1
{[%clk 0:02:11.3]} 15... Qxb2 {[%clk 0:01:45]} 16. Rb1 {[%clk 0:02:10.3]} 16...
Qa3 {[%clk 0:01:44.2]} 17. Rb3 {[%clk 0:01:57.8]} 17... Qa5 {[%clk 0:01:42.6]}
18. Rxb7 {[%clk 0:01:58.5]} 18... c5 {[%clk 0:01:41.2]} 19. Qd2 {[%clk
0:01:20.2]} 19... cxd4 {[%clk 0:01:30.8]} 20. Nxd4 {[%clk 0:01:17.2]} 20... Rac8
{[%clk 0:01:30.8]} 21. Rc1 {[%clk 0:00:58.8]} 21... dxe4 {[%clk 0:01:25]} 22.
fxe4 {[%clk 0:00:55.3]} 22... Bxe4 {[%clk 0:01:20.3]} 23. Nb3 {[%clk 0:00:45.1]}
23... Bxg2+ {[%clk 0:00:31.6]} 24. Qxg2 {[%clk 0:00:28.9]} 24... Qe5 {[%clk
0:00:26.9]} 25. Rg1 {[%clk 0:00:21.9]} 25... g6 {[%clk 0:00:28.4]} 26. Ne4
{[%clk 0:00:21.2]} 26... Rfd8 {[%clk 0:00:24.3]} 27. Ng5 {[%clk 0:00:11.9]}
27... Rc3 {[%clk 0:00:19.6]} 28. Bxa6 {[%clk 0:00:12]} 28... Rdc8 {[%clk
0:00:11.1]} 29. Rxd7 {[%clk 0:00:12]} 29... Rc2 {[%clk 0:00:11.8]} 30. Rd8+
{[%clk 0:00:09]} 30... Kg7 {[%clk 0:00:12.1]} 31. Rd2 {[%clk 0:00:09.4]} 31...
Rxd2 {[%clk 0:00:08.3]} 32. Nxd2 {[%clk 0:00:10.5]} 32... Rc2 {[%clk 0:00:09.1]}
33. Ngf3 {[%clk 0:00:09.3]} 33... Qa5 {[%clk 0:00:06.7]} 34. Bc4 {[%clk
0:00:10.6]} 34... Ne4 {[%clk 0:00:06.4]} 35. Bb3 {[%clk 0:00:10.9]} 35... Rb2
{[%clk 0:00:05.1]} 36. Nc4 {[%clk 0:00:10.9]} 36... Rxg2 {[%clk 0:00:04.5]} 37.
Nxa5 {[%clk 0:00:11.7]} 37... Rb2 {[%clk 0:00:05.6]} 38. Rf1 {[%clk 0:00:11.6]}
38... g5 {[%clk 0:00:04.4]} 39. Nc4 {[%clk 0:00:12.4]} 39... Re2 {[%clk
0:00:05.6]} 40. Nd4 {[%clk 0:00:13.6]} 40... Re3 {[%clk 0:00:03.8]} 41. Nxe3
{[%clk 0:00:14.3]} 1-0

[Event "*** Titled Tuesday Blitz"]
[Site "Chess.com"]
[Date "2019.07.02"]
[Round "3"]
[White "alturas_pacificas"]
[Black "Squirlolz"]
[Result "0-1"]
[WhiteElo "2392"]
[BlackElo "2428"]
[TimeControl "180+2"]
[EndTime "13:40:23 PDT"]
[Termination "Squirlolz won by resignation"]

1. d4 {[%clk 0:03:01.7]} 1... Nf6 {[%clk 0:03:00.6]} 2. Bf4 {[%clk 0:03:00.6]}
2... d5 {[%clk 0:03:01.4]} 3. e3 {[%clk 0:03:01.1]} 3... e6 {[%clk 0:02:57.9]}
4. Nd2 {[%clk 0:02:59.8]} 4... Bd6 {[%clk 0:02:59.3]} 5. Bg3 {[%clk 0:02:59.1]}
5... O-O {[%clk 0:03:00.4]} 6. Ngf3 {[%clk 0:02:59.9]} 6... c5 {[%clk
0:03:00.7]} 7. c3 {[%clk 0:03:01.2]} 7... b6 {[%clk 0:03:01.6]} 8. Bd3 {[%clk
0:03:02.2]} 8... Ba6 {[%clk 0:03:01.7]} 9. Bxa6 {[%clk 0:03:02.7]} 9... Nxa6
{[%clk 0:03:02.9]} 10. Qe2 {[%clk 0:03:04.1]} 10... Nb8 {[%clk 0:03:00]} 11. Ne5
{[%clk 0:03:05]} 11... Qc7 {[%clk 0:03:00.6]} 12. f4 {[%clk 0:03:05.8]} 12...
Nc6 {[%clk 0:02:58.5]} 13. O-O {[%clk 0:03:05.3]} 13... Ne4 {[%clk 0:02:53.2]}
14. Nxe4 {[%clk 0:03:05.8]} 14... dxe4 {[%clk 0:02:55.1]} 15. Qc2 {[%clk
0:03:07.4]} 15... f6 {[%clk 0:02:06.1]} 16. Nc4 {[%clk 0:02:53.2]} 16... f5
{[%clk 0:02:05.8]} 17. Ne5 {[%clk 0:02:46.5]} 17... Bxe5 {[%clk 0:01:43.5]} 18.
dxe5 {[%clk 0:02:47.7]} 18... Rad8 {[%clk 0:01:38]} 19. Qb3 {[%clk 0:02:41.7]}
19... Rd5 {[%clk 0:01:35.1]} 20. Bh4 {[%clk 0:02:37.9]} 20... Na5 {[%clk
0:01:23]} 21. Qa4 {[%clk 0:02:30.3]} 21... c4 {[%clk 0:01:17.6]} 22. Rad1 {[%clk
0:02:26.2]} 22... b5 {[%clk 0:01:17]} 23. Qa3 {[%clk 0:02:21.4]} 23... Rd3
{[%clk 0:01:16.3]} 24. Be7 {[%clk 0:02:20.5]} 24... Rc8 {[%clk 0:01:08.9]} 25.
Bd6 {[%clk 0:02:20.9]} 25... Qb6 {[%clk 0:01:10]} 26. Kh1 {[%clk 0:01:56.5]}
26... Nb7 {[%clk 0:00:58.4]} 27. b4 {[%clk 0:01:14.4]} 27... Nxd6 {[%clk
0:00:45.3]} 28. exd6 {[%clk 0:01:15.2]} 28... Rd8 {[%clk 0:00:46.6]} 29. Rde1
{[%clk 0:00:42.2]} 29... R8xd6 {[%clk 0:00:45.1]} 30. Qc1 {[%clk 0:00:43.8]}
30... Qd8 {[%clk 0:00:44.1]} 31. h3 {[%clk 0:00:37.4]} 31... Qf6 {[%clk
0:00:44.6]} 32. Rd1 {[%clk 0:00:33.8]} 32... Rxd1 {[%clk 0:00:40.6]} 33. Rxd1
{[%clk 0:00:34.9]} 33... Rd3 {[%clk 0:00:42.5]} 34. Rxd3 {[%clk 0:00:34.1]}
34... exd3 {[%clk 0:00:42.8]} 35. Qd2 {[%clk 0:00:34.7]} 35... h5 {[%clk
0:00:38]} 36. g3 {[%clk 0:00:33.9]} 36... Qd8 {[%clk 0:00:36.2]} 37. Kg1 {[%clk
0:00:33.9]} 37... Qd5 {[%clk 0:00:36]} 38. Qd1 {[%clk 0:00:27.5]} 38... d2
{[%clk 0:00:31.8]} 39. Kf2 {[%clk 0:00:24.2]} 39... Qd3 {[%clk 0:00:32.3]} 40.
g4 {[%clk 0:00:22.3]} 40... Qxc3 {[%clk 0:00:27.6]} 41. gxh5 {[%clk 0:00:20.6]}
41... Qc1 {[%clk 0:00:28.1]} 42. Ke2 {[%clk 0:00:18.2]} 42... Qxd1+ {[%clk
0:00:25.3]} 43. Kxd1 {[%clk 0:00:19.3]} 43... c3 {[%clk 0:00:27.2]} 44. Kc2
{[%clk 0:00:20.5]} 44... Kh7 {[%clk 0:00:27.6]} 45. Kd1 {[%clk 0:00:17.8]} 45...
Kh6 {[%clk 0:00:28.4]} 0-1

[Event "*** Titled Tuesday Blitz"]
[Site "Chess.com"]
[Date "2019.07.02"]
[Round "3"]
[White "playerorkinyo"]
[Black "Tarlev_Konstantin"]
[Result "1-0"]
[WhiteElo "2421"]
[BlackElo "2554"]
[TimeControl "180+2"]
[EndTime "13:40:27 PDT"]
[Termination "playerorkinyo won by checkmate"]

1. c4 {[%clk 0:03:01.9]} 1... Nf6 {[%clk 0:03:01]} 2. Nc3 {[%clk 0:03:02.4]}
2... e5 {[%clk 0:03:02.2]} 3. g3 {[%clk 0:03:02]} 3... d5 {[%clk 0:03:03.2]} 4.
cxd5 {[%clk 0:03:02.8]} 4... Nxd5 {[%clk 0:03:05.1]} 5. Bg2 {[%clk 0:03:04.4]}
5... Nb6 {[%clk 0:03:06.5]} 6. d3 {[%clk 0:03:04.6]} 6... Be7 {[%clk 0:03:07.6]}
7. Be3 {[%clk 0:03:05.3]} 7... O-O {[%clk 0:03:07.8]} 8. Qd2 {[%clk 0:03:06.3]}
8... Re8 {[%clk 0:02:41.4]} 9. h4 {[%clk 0:02:57.1]} 9... Nc6 {[%clk 0:02:39.1]}
10. Bxc6 {[%clk 0:02:52.4]} 10... bxc6 {[%clk 0:02:41]} 11. h5 {[%clk
0:02:53.5]} 11... Nd5 {[%clk 0:02:38.5]} 12. Nf3 {[%clk 0:02:53.3]} 12... Bf8
{[%clk 0:02:33.7]} 13. Rc1 {[%clk 0:02:47.1]} 13... Nxe3 {[%clk 0:02:08.4]} 14.
Qxe3 {[%clk 0:02:48.2]} 14... Rb8 {[%clk 0:02:06.9]} 15. Rc2 {[%clk 0:02:31.6]}
15... c5 {[%clk 0:02:00]} 16. b3 {[%clk 0:02:16.4]} 16... Rb4 {[%clk 0:01:52.3]}
17. h6 {[%clk 0:01:52.7]} 17... g6 {[%clk 0:01:43.8]} 18. Ne4 {[%clk 0:01:53.6]}
18... Bb7 {[%clk 0:01:41.6]} 19. Nxc5 {[%clk 0:01:47.3]} 19... Ba8 {[%clk
0:01:30]} 20. Qd2 {[%clk 0:01:00.5]} 20... Rd4 {[%clk 0:01:21.2]} 21. Nxd4
{[%clk 0:00:51]} 21... Bxh1 {[%clk 0:01:06.1]} 22. Nf3 {[%clk 0:00:35.8]} 22...
f5 {[%clk 0:00:22]} 23. Qe3 {[%clk 0:00:21.1]} 23... f4 {[%clk 0:00:18]} 24. Qe4
{[%clk 0:00:16.9]} 24... Bxh6 {[%clk 0:00:17.6]} 25. Qc4+ {[%clk 0:00:16.2]}
25... Kh8 {[%clk 0:00:18.8]} 26. Ne6 {[%clk 0:00:16.4]} 26... Qf6 {[%clk
0:00:17]} 27. Nxc7 {[%clk 0:00:16]} 27... Rf8 {[%clk 0:00:15.8]} 28. Nd5 {[%clk
0:00:16]} 28... Qe6 {[%clk 0:00:14.6]} 29. Qe4 {[%clk 0:00:15.7]} 29... Bxf3
{[%clk 0:00:14.5]} 30. exf3 {[%clk 0:00:16.6]} 30... fxg3 {[%clk 0:00:15.8]} 31.
fxg3 {[%clk 0:00:18.2]} 31... Rd8 {[%clk 0:00:16.5]} 32. Nf4 {[%clk 0:00:14.2]}
32... Qd7 {[%clk 0:00:12.8]} 33. Qxe5+ {[%clk 0:00:13.4]} 33... Bg7 {[%clk
0:00:13.7]} 34. Qc7 {[%clk 0:00:13.7]} 34... Re8+ {[%clk 0:00:12.8]} 35. Kf1
{[%clk 0:00:14.7]} 35... Qd4 {[%clk 0:00:12.7]} 36. Re2 {[%clk 0:00:15.7]} 36...
Rf8 {[%clk 0:00:13.1]} 37. Kg2 {[%clk 0:00:14.1]} 37... Qf6 {[%clk 0:00:12.6]}
38. Re6 {[%clk 0:00:13.9]} 38... Qf5 {[%clk 0:00:13]} 39. Re7 {[%clk 0:00:13.7]}
39... Bf6 {[%clk 0:00:12.4]} 40. Rxh7+ {[%clk 0:00:14.4]} 40... Kg8 {[%clk
0:00:14.3]} 41. Rh1 {[%clk 0:00:14.4]} 41... Be5 {[%clk 0:00:12.3]} 42. Qh7#
{[%clk 0:00:15.2]} 1-0

[Event "*** Titled Tuesday Blitz"]
[Site "Chess.com"]
[Date "2019.07.02"]
[Round "3"]
[White "vlad_Sid"]
[Black "dmosesov"]
[Result "0-1"]
[WhiteElo "2531"]
[BlackElo "2518"]
[TimeControl "180+2"]
[EndTime "13:40:32 PDT"]
[Termination "dmosesov won by checkmate"]

1. c4 {[%clk 0:03:01.9]} 1... e6 {[%clk 0:03:00.7]} 2. g3 {[%clk 0:03:03.3]}
2... d5 {[%clk 0:02:58.9]} 3. Bg2 {[%clk 0:03:03.1]} 3... Nf6 {[%clk 0:03:00]}
4. Nf3 {[%clk 0:03:04.1]} 4... dxc4 {[%clk 0:03:01.3]} 5. Qa4+ {[%clk
0:03:03.8]} 5... Nbd7 {[%clk 0:03:02.5]} 6. Qxc4 {[%clk 0:03:04.1]} 6... a6
{[%clk 0:03:04]} 7. O-O {[%clk 0:03:04.8]} 7... b5 {[%clk 0:03:05]} 8. Qc2
{[%clk 0:03:06.4]} 8... Bb7 {[%clk 0:03:06.4]} 9. d3 {[%clk 0:03:05.3]} 9... c5
{[%clk 0:03:05.5]} 10. Nbd2 {[%clk 0:03:05.2]} 10... Be7 {[%clk 0:03:07]} 11. a4
{[%clk 0:03:05.2]} 11... O-O {[%clk 0:03:07.3]} 12. b3 {[%clk 0:03:04.9]} 12...
Nd5 {[%clk 0:03:04.1]} 13. Bb2 {[%clk 0:02:49.8]} 13... Bf6 {[%clk 0:03:04.9]}
14. Ne4 {[%clk 0:02:45.9]} 14... Bxb2 {[%clk 0:02:57.4]} 15. Qxb2 {[%clk
0:02:47.8]} 15... Qe7 {[%clk 0:02:52.6]} 16. Rfc1 {[%clk 0:02:42.2]} 16... f5
{[%clk 0:02:24.3]} 17. Nc3 {[%clk 0:02:41.4]} 17... b4 {[%clk 0:02:06.6]} 18.
Nxd5 {[%clk 0:02:41.1]} 18... Bxd5 {[%clk 0:02:08.5]} 19. e3 {[%clk 0:02:29.6]}
19... Rad8 {[%clk 0:01:56]} 20. d4 {[%clk 0:02:25]} 20... cxd4 {[%clk
0:01:29.4]} 21. Nxd4 {[%clk 0:02:25.5]} 21... Bxg2 {[%clk 0:01:30.9]} 22. Kxg2
{[%clk 0:02:27.4]} 22... Ne5 {[%clk 0:01:32.5]} 23. Qe2 {[%clk 0:02:22.3]} 23...
Qb7+ {[%clk 0:01:24.4]} 24. f3 {[%clk 0:02:22]} 24... Rfe8 {[%clk 0:01:25.1]}
25. Rc5 {[%clk 0:02:20.6]} 25... Nd7 {[%clk 0:01:16.7]} 26. Rc6 {[%clk
0:02:18.8]} 26... Ne5 {[%clk 0:01:16.5]} 27. Rc5 {[%clk 0:02:06.2]} 27... Nd7
{[%clk 0:01:15.8]} 28. Rc6 {[%clk 0:01:53.7]} 28... Ne5 {[%clk 0:00:50.1]} 29.
Qxa6 {[%clk 0:01:53.2]} 29... Qf7 {[%clk 0:00:25.6]} 30. Rc2 {[%clk 0:01:50.4]}
30... g5 {[%clk 0:00:24.2]} 31. Qb5 {[%clk 0:01:49]} 31... Ng6 {[%clk
0:00:19.6]} 32. Qxb4 {[%clk 0:01:45.6]} 32... e5 {[%clk 0:00:19.5]} 33. Nc6
{[%clk 0:01:47.1]} 33... Rc8 {[%clk 0:00:18.8]} 34. Rac1 {[%clk 0:01:42.2]}
34... g4 {[%clk 0:00:20]} 35. fxg4 {[%clk 0:01:29.1]} 35... fxg4 {[%clk
0:00:21.3]} 36. Qxg4 {[%clk 0:01:28.3]} 36... Kh8 {[%clk 0:00:19.5]} 37. Qe4
{[%clk 0:01:18.7]} 37... Qxb3 {[%clk 0:00:20]} 38. a5 {[%clk 0:01:18.1]} 38...
Qb5 {[%clk 0:00:15.5]} 39. Qc4 {[%clk 0:01:11.5]} 39... Qb7 {[%clk 0:00:11.7]}
40. a6 {[%clk 0:01:10.6]} 40... Qd7 {[%clk 0:00:12.8]} 41. a7 {[%clk 0:01:08.6]}
41... Ra8 {[%clk 0:00:13.3]} 42. Rf2 {[%clk 0:00:48.8]} 42... Qb7 {[%clk
0:00:10.8]} 43. Qe4 {[%clk 0:00:48.1]} 43... Rf8 {[%clk 0:00:09]} 44. Rxf8+
{[%clk 0:00:46.5]} 44... Rxf8 {[%clk 0:00:10.9]} 45. Rb1 {[%clk 0:00:41.9]}
45... Qf7 {[%clk 0:00:09.7]} 46. Kh1 {[%clk 0:00:37]} 46... Qa2 {[%clk
0:00:07.6]} 47. Rb8 {[%clk 0:00:35.2]} 47... Qa1+ {[%clk 0:00:07.8]} 48. Kg2
{[%clk 0:00:36.1]} 48... Qf1# {[%clk 0:00:08.6]} 0-1

[Event "*** Titled Tuesday Blitz"]
[Site "Chess.com"]
[Date "2019.07.02"]
[Round "3"]
[White "Padenie_Zvezd"]
[Black "Barrelius"]
[Result "1-0"]
[WhiteElo "2681"]
[BlackElo "2471"]
[TimeControl "180+2"]
[EndTime "13:40:37 PDT"]
[Termination "Padenie_Zvezd won by resignation"]

1. d4 {[%clk 0:03:01.9]} 1... d5 {[%clk 0:03:01]} 2. c4 {[%clk 0:03:02.9]} 2...
e6 {[%clk 0:03:02.4]} 3. Nc3 {[%clk 0:03:03.6]} 3... Nf6 {[%clk 0:03:03.7]} 4.
Bg5 {[%clk 0:03:04.5]} 4... Be7 {[%clk 0:03:03.3]} 5. e3 {[%clk 0:03:05.7]} 5...
Nbd7 {[%clk 0:03:03.5]} 6. Nf3 {[%clk 0:03:06.5]} 6... h6 {[%clk 0:03:04.5]} 7.
Bh4 {[%clk 0:03:06.8]} 7... O-O {[%clk 0:03:04.8]} 8. Rc1 {[%clk 0:03:05.4]}
8... c5 {[%clk 0:03:00.1]} 9. cxd5 {[%clk 0:03:04.6]} 9... Nxd5 {[%clk
0:03:00.8]} 10. Bxe7 {[%clk 0:03:06]} 10... Nxe7 {[%clk 0:03:01.7]} 11. Be2
{[%clk 0:02:56.5]} 11... b6 {[%clk 0:03:02.2]} 12. O-O {[%clk 0:02:50.3]} 12...
Bb7 {[%clk 0:03:02]} 13. Qd3 {[%clk 0:02:45.4]} 13... Nd5 {[%clk 0:02:51.5]} 14.
Nxd5 {[%clk 0:02:41.3]} 14... Bxd5 {[%clk 0:02:43.6]} 15. e4 {[%clk 0:02:41.8]}
15... Bb7 {[%clk 0:02:44.2]} 16. Qe3 {[%clk 0:02:42.7]} 16... cxd4 {[%clk
0:02:44]} 17. Nxd4 {[%clk 0:02:44.6]} 17... Rc8 {[%clk 0:02:43.1]} 18. Rxc8
{[%clk 0:02:44.4]} 18... Qxc8 {[%clk 0:02:42.5]} 19. Rc1 {[%clk 0:02:45]} 19...
Qa8 {[%clk 0:02:42.6]} 20. f3 {[%clk 0:02:43.4]} 20... Rc8 {[%clk 0:02:43.5]}
21. Nb5 {[%clk 0:02:40.8]} 21... Qb8 {[%clk 0:02:36.3]} 22. Rxc8+ {[%clk
0:02:38.1]} 22... Bxc8 {[%clk 0:02:36.8]} 23. Qa3 {[%clk 0:02:08.8]} 23... a5
{[%clk 0:02:04.1]} 24. Qd6 {[%clk 0:02:04]} 24... Qb7 {[%clk 0:01:39.2]} 25. Bc4
{[%clk 0:01:53.8]} 25... Nc5 {[%clk 0:01:29.4]} 26. h3 {[%clk 0:01:38.2]} 26...
Bd7 {[%clk 0:01:28.7]} 27. Nc7 {[%clk 0:01:36.8]} 27... Qc6 {[%clk 0:01:24.3]}
28. Qxc6 {[%clk 0:01:26.4]} 28... Bxc6 {[%clk 0:01:26.2]} 29. Kf2 {[%clk
0:01:24.9]} 29... Kf8 {[%clk 0:01:25.5]} 30. Ke3 {[%clk 0:01:26]} 30... Ke7
{[%clk 0:01:25.6]} 31. e5 {[%clk 0:01:27.5]} 31... Kd7 {[%clk 0:01:15.6]} 32.
Nb5 {[%clk 0:01:28.6]} 32... Bxb5 {[%clk 0:01:13.3]} 33. Bxb5+ {[%clk
0:01:30.5]} 33... Kc7 {[%clk 0:01:00.2]} 34. Kd4 {[%clk 0:01:32.4]} 34... Nb7
{[%clk 0:00:57.7]} 35. Be8 {[%clk 0:01:27.2]} 35... Nd8 {[%clk 0:00:58.9]} 36.
Kc4 {[%clk 0:01:24.3]} 36... Nc6 {[%clk 0:00:58.7]} 37. f4 {[%clk 0:01:20.3]}
37... f6 {[%clk 0:00:53.5]} 38. exf6 {[%clk 0:01:05.9]} 38... gxf6 {[%clk
0:00:54.4]} 39. Bxc6 {[%clk 0:01:03.4]} 39... Kxc6 {[%clk 0:00:56.3]} 40. g4
{[%clk 0:01:05.2]} 40... b5+ {[%clk 0:00:53.7]} 41. Kd4 {[%clk 0:01:06]} 41...
Kd6 {[%clk 0:00:53.7]} 42. Ke4 {[%clk 0:01:05.4]} 42... Ke7 {[%clk 0:00:44.8]}
43. Kd4 {[%clk 0:01:04.4]} 43... Kd6 {[%clk 0:00:45.9]} 44. h4 {[%clk
0:01:03.1]} 44... Ke7 {[%clk 0:00:27.1]} 45. Kc5 {[%clk 0:00:57.3]} 45... b4
{[%clk 0:00:24.9]} 46. Kb5 {[%clk 0:00:51.2]} 46... h5 {[%clk 0:00:14.8]} 47.
gxh5 {[%clk 0:00:44.8]} 47... f5 {[%clk 0:00:08.5]} 48. Kxa5 {[%clk 0:00:36.2]}
48... e5 {[%clk 0:00:09.4]} 49. Kxb4 {[%clk 0:00:37.5]} 49... exf4 {[%clk
0:00:09]} 50. Kc3 {[%clk 0:00:38.5]} 1-0

[Event "*** Titled Tuesday Blitz"]
[Site "Chess.com"]
[Date "2019.07.02"]
[Round "3"]
[White "josiwales"]
[Black "LaughingTiger"]
[Result "1-0"]
[WhiteElo "2467"]
[BlackElo "2312"]
[TimeControl "180+2"]
[EndTime "13:40:42 PDT"]
[Termination "josiwales won by checkmate"]

1. e4 {[%clk 0:03:01.9]} 1... c5 {[%clk 0:02:59.2]} 2. Nc3 {[%clk 0:03:01.6]}
2... Nc6 {[%clk 0:02:59.2]} 3. g3 {[%clk 0:03:03.5]} 3... g6 {[%clk 0:02:59.2]}
4. Bg2 {[%clk 0:03:05.4]} 4... Bg7 {[%clk 0:03:00.8]} 5. d3 {[%clk 0:03:06]}
5... h5 {[%clk 0:03:00.8]} 6. Be3 {[%clk 0:03:06.7]} 6... d6 {[%clk 0:02:59.1]}
7. h3 {[%clk 0:03:07.6]} 7... Rb8 {[%clk 0:02:55.5]} 8. f4 {[%clk 0:03:05.5]}
8... Nh6 {[%clk 0:02:54.8]} 9. Qd2 {[%clk 0:03:06]} 9... Nd4 {[%clk 0:02:53.9]}
10. Nd1 {[%clk 0:03:05.9]} 10... f5 {[%clk 0:02:48]} 11. c3 {[%clk 0:03:04.7]}
11... Nc6 {[%clk 0:02:49]} 12. Ne2 {[%clk 0:02:59.5]} 12... e6 {[%clk
0:02:48.1]} 13. e5 {[%clk 0:02:57.2]} 13... Qc7 {[%clk 0:02:35.1]} 14. O-O
{[%clk 0:02:56.7]} 14... dxe5 {[%clk 0:02:30.4]} 15. Bxc5 {[%clk 0:02:56.8]}
15... Nf7 {[%clk 0:02:25]} 16. fxe5 {[%clk 0:02:56]} 16... Ncxe5 {[%clk
0:02:15.8]} 17. d4 {[%clk 0:02:52.8]} 17... Nc6 {[%clk 0:02:13.1]} 18. Nf4
{[%clk 0:02:52.6]} 18... g5 {[%clk 0:02:10]} 19. Nd3 {[%clk 0:02:48.5]} 19...
Qxg3 {[%clk 0:02:04.1]} 20. Rf3 {[%clk 0:02:45.2]} 20... Qc7 {[%clk 0:02:04.9]}
21. Ne3 {[%clk 0:02:44.3]} 21... b6 {[%clk 0:02:04.5]} 22. Ba3 {[%clk
0:02:44.1]} 22... g4 {[%clk 0:02:04.1]} 23. hxg4 {[%clk 0:02:38]} 23... hxg4
{[%clk 0:02:06]} 24. Rf2 {[%clk 0:02:36.4]} 24... Na5 {[%clk 0:01:30.7]} 25. d5
{[%clk 0:02:29.2]} 25... Nc4 {[%clk 0:01:10.4]} 26. Nxc4 {[%clk 0:02:25.9]}
26... Qxc4 {[%clk 0:01:12.3]} 27. dxe6 {[%clk 0:02:25.1]} 27... Bxe6 {[%clk
0:01:12.5]} 28. Re1 {[%clk 0:02:26.5]} 28... Rd8 {[%clk 0:00:57.5]} 29. Qf4
{[%clk 0:02:07]} 29... Kd7 {[%clk 0:00:21.7]} 30. Qxc4 {[%clk 0:01:55.2]} 30...
Bxc4 {[%clk 0:00:23.6]} 31. Re7+ {[%clk 0:01:55.9]} 31... Kc8 {[%clk 0:00:20.4]}
32. Bb7+ {[%clk 0:01:45.6]} 32... Kb8 {[%clk 0:00:21.6]} 33. Nb4 {[%clk
0:01:47.2]} 33... Rd1+ {[%clk 0:00:22]} 34. Kg2 {[%clk 0:01:48.6]} 34... Nd8
{[%clk 0:00:15.6]} 35. Nc6+ {[%clk 0:01:34.1]} 35... Nxc6 {[%clk 0:00:16.2]} 36.
Bxc6 {[%clk 0:01:36]} 36... Bf6 {[%clk 0:00:12.2]} 37. Rb7+ {[%clk 0:01:34.4]}
37... Kc8 {[%clk 0:00:13.8]} 38. Rxa7 {[%clk 0:01:35.2]} 38... Be5 {[%clk
0:00:14.5]} 39. Ra8+ {[%clk 0:01:11.7]} 39... Kc7 {[%clk 0:00:15.8]} 40. Rxh8
{[%clk 0:01:10.3]} 40... Bxh8 {[%clk 0:00:17.7]} 41. Ba4 {[%clk 0:01:03.8]}
41... Rd5 {[%clk 0:00:18.4]} 42. Bb3 {[%clk 0:01:02.2]} 42... b5 {[%clk
0:00:18.1]} 43. Bxc4 {[%clk 0:01:00.3]} 43... bxc4 {[%clk 0:00:20]} 44. Rf4
{[%clk 0:00:59.1]} 44... Rd2+ {[%clk 0:00:21.1]} 45. Kf1 {[%clk 0:01:00.3]}
45... g3 {[%clk 0:00:20.1]} 46. Rxf5 {[%clk 0:00:59.5]} 46... g2+ {[%clk
0:00:17.9]} 47. Kg1 {[%clk 0:01:00.9]} 47... Bg7 {[%clk 0:00:15.9]} 48. Rg5
{[%clk 0:01:01.6]} 48... Bh6 {[%clk 0:00:17.1]} 49. Rxg2 {[%clk 0:01:02.7]}
49... Be3+ {[%clk 0:00:15.7]} 50. Kf1 {[%clk 0:01:01.9]} 50... Rd1+ {[%clk
0:00:16.9]} 51. Ke2 {[%clk 0:01:02.8]} 51... Rd2+ {[%clk 0:00:18.8]} 52. Kf3
{[%clk 0:01:04.3]} 52... Rd3 {[%clk 0:00:19.3]} 53. Rg4 {[%clk 0:01:00.9]} 53...
Bc5+ {[%clk 0:00:15.4]} 54. Ke2 {[%clk 0:00:59.2]} 54... Re3+ {[%clk 0:00:12.4]}
55. Kd2 {[%clk 0:01:00.5]} 55... Rd3+ {[%clk 0:00:13.8]} 56. Kc2 {[%clk
0:01:01.1]} 56... Rd5 {[%clk 0:00:13.8]} 57. Rxc4 {[%clk 0:01:01.7]} 57... Kd6
{[%clk 0:00:14.7]} 58. Bxc5+ {[%clk 0:01:01.8]} 58... Rxc5 {[%clk 0:00:16.6]}
59. Rxc5 {[%clk 0:01:03.4]} 59... Kxc5 {[%clk 0:00:18.5]} 60. b4+ {[%clk
0:01:03.9]} 60... Kc6 {[%clk 0:00:20.4]} 61. Kb3 {[%clk 0:01:05.2]} 61... Kc7
{[%clk 0:00:22.3]} 62. c4 {[%clk 0:01:06.9]} 62... Kb8 {[%clk 0:00:24.2]} 63. c5
{[%clk 0:01:08.6]} 63... Kc8 {[%clk 0:00:26.1]} 64. Kc4 {[%clk 0:01:10.4]} 64...
Kd8 {[%clk 0:00:28]} 65. b5 {[%clk 0:01:12.1]} 65... Kc8 {[%clk 0:00:29.9]} 66.
a4 {[%clk 0:01:13.7]} 66... Kb8 {[%clk 0:00:31.8]} 67. a5 {[%clk 0:01:15.6]}
67... Ka8 {[%clk 0:00:33.7]} 68. c6 {[%clk 0:01:17.2]} 68... Kb8 {[%clk
0:00:35.6]} 69. Kc5 {[%clk 0:01:18.8]} 69... Kc8 {[%clk 0:00:37.5]} 70. b6
{[%clk 0:01:20.5]} 70... Kb8 {[%clk 0:00:39.4]} 71. Kb5 {[%clk 0:01:22.1]} 71...
Kc8 {[%clk 0:00:41.3]} 72. Ka6 {[%clk 0:01:23.9]} 72... Kb8 {[%clk 0:00:43.2]}
73. c7+ {[%clk 0:01:24.9]} 73... Kc8 {[%clk 0:00:45.1]} 74. Ka7 {[%clk
0:01:26.2]} 74... Kd7 {[%clk 0:00:46]} 75. Kb7 {[%clk 0:01:27.7]} 75... Kd6
{[%clk 0:00:47.3]} 76. c8=Q {[%clk 0:01:29.2]} 76... Kd5 {[%clk 0:00:49.2]} 77.
a6 {[%clk 0:01:30.6]} 77... Ke4 {[%clk 0:00:51.1]} 78. a7 {[%clk 0:01:32.5]}
78... Ke3 {[%clk 0:00:53]} 79. a8=Q {[%clk 0:01:34.1]} 79... Ke2 {[%clk
0:00:54.9]} 80. Qab8 {[%clk 0:01:35.6]} 80... Ke1 {[%clk 0:00:56.8]} 81. Kc7
{[%clk 0:01:37.1]} 81... Kf2 {[%clk 0:00:58.7]} 82. b7 {[%clk 0:01:38.7]} 82...
Kg1 {[%clk 0:01:00.6]} 83. Qa7+ {[%clk 0:01:40]} 83... Kg2 {[%clk 0:01:00.5]}
84. Qg4+ {[%clk 0:01:40.8]} 84... Kf1 {[%clk 0:01:02.4]} 85. Qag1# {[%clk
0:01:41.3]} 1-0